{"text_format":"1","workbook":"xlsx","n_sheets":2,"sheets":["Kalibreringsbevis","Temperaturregistrering"],"not_rendered":{"charts":0,"images":1,"macros":1,"external_links":0,"defined_names":0,"comments":0,"pivot_tables":0},"unopened":[],"bounds":{"document_bytes":16777216,"sheet_cells":100000,"rows_first":2000,"rows_last":500,"rows_between":2000,"halvings":0,"cell_chars":16384,"cell_head_chars":4096},"cells_cut":0,"cells_raw":0,"read":"whole","date_system":"1900"}

{"sheet":"Kalibreringsbevis","index":0,"n_rows":10,"n_cols":6,"rows_kept":10,"cut":false,"hidden":false,"merged":[]}
["EQSDokument 38555 v 1.0"]
["Referansetermometer, CALIBRATION RESULTS"]
["Kalibreringsdato:","2026-04-24"]
["ID ved kalibreringslab:","0110897","MTA Nr:",14427]
[]
["Måleområde\nNavn","Sann temperatur","Avlest temperatur","Avvik","Leverandørs spesifikasjoner","Måleusikkerhet (k=2)"]
["Fryser -40 ⁰C",-39.96,-39.200000000000003,{"$f":"C7-B7","v":0.75999999999999801},2.2200000000000002,0.33]
["Kjøleskap 0 ⁰C",0.02,0.4,{"$f":"C8-B8","v":0.38},1.1399999999999999,0.33]
["Romtemperatur 20 ⁰C",22,22.3,0.30000000000000071,1.1399999999999999,0.33]
["Inkubator 37 ⁰C",36.979999999999997,37.299999999999997,0.32000000000000028,1.1499999999999999,0.33]

{"sheet":"Temperaturregistrering","index":1,"n_rows":29,"n_cols":8,"rows_kept":29,"cut":false,"hidden":false,"merged":[[25,0,25,1]]}
[{"$f":"Kalibreringsbevis!A1","v":"EQSDokument 38555 v 1.0"}]
["Temperaturkontroll av brukstermometeret knyttet til:",null,null,null,null,null,null,"Fryser -80 ⁰C"]
["Instrument-navn:",null,null,null,null,null,null,"Fryser -40 ⁰C"]
["TEK nr:",null,null,null,null,null,null,"Fryser -20 ⁰C"]
[null,null,null,null,null,null,null,"Kjøleskap 0 ⁰C"]
["Dato for disse målingene:",null,null,null,null,null,null,"Romtemperatur 20 ⁰C"]
["Identitet til brukstermometer:",null,null,null,null,null,null,"Inkubator 37 ⁰C"]
["MTA-nr referansetermometer:",{"$f":"Kalibreringsbevis!D4","v":14427},null,null,null,null,null,"Autoklave 120 ⁰C"]
["Utført (Sign):"]
[]
[null,"Brukstermometer","Referansetermometer"]
["Måling 1"]
["Måling 2"]
["Måling 3"]
["Gjennomsnitt",{"$f":"AVERAGE(B12:B14)","v":{"$error":"#DIV/0!"}},{"$f":"AVERAGE(C12:C14)","v":{"$error":"#DIV/0!"}}]
[]
["∆ Referanse- og brukstermometer",{"$f":"C15-B15","v":{"$error":"#DIV/0!"}},"Velg temperaturtype i liste:"]
["Korreksjon til referansetermometer i aktuell måleområde",{"$f":"IF(C18=Kalibreringsbevis!A7,Kalibreringsbevis!D7,IF(C18=Kalibreringsbevis!A8,Kalibreringsbevis!D8,IF(C18=Kalibreringsbevis!A9,Kalibreringsbevis!D9,IF(C18=Kalibreringsbevis!A10,Kalibreringsbevis!D10,\"\"))))","v":0.75999999999999801},"Fryser -40 ⁰C"]
["Korreksjon til brukstermometeret",{"$f":"B17+B18","v":{"$error":"#DIV/0!"}}]
["Måleusikkerhet brukstermometer"]
["Måleusikkerhet referansetermometer",{"$f":"IF(C18=Kalibreringsbevis!A7,Kalibreringsbevis!F7,IF(C18=Kalibreringsbevis!A8,Kalibreringsbevis!F8,IF(C18=Kalibreringsbevis!A9,Kalibreringsbevis!F9,IF(C18=Kalibreringsbevis!A10,Kalibreringsbevis!F10,\"\"))))","v":0.33}]
["Samlet måleusikkerhet",{"$f":"SQRT(B20^2+B21^2)","v":0.33}]
[null,null,"Nedre grense","Øvre grense"]
["Ønsket temperatur",null,{"$f":"B24-B25","v":0},{"$f":"B24+B25","v":0}]
["Aksjonsgrense"]
["Korrigering pga måleusikkerhet og nøyaktighet",null,"Nedre grense","Øvre grense","Aksjonsgrense"]
["Ønsket temperatur",{"$f":"B24-B19","v":{"$error":"#DIV/0!"}},{"$f":"B27-E27","v":{"$error":"#DIV/0!"}},{"$f":"B27+E27","v":{"$error":"#DIV/0!"}},{"$f":"ABS(B25-B22)","v":0.33}]
[null,{"$f":"IF(ABS(B27-B24)<B25*0.2,B24,B27)","v":{"$error":"#DIV/0!"}},{"$f":"B28-E28","v":{"$error":"#DIV/0!"}},{"$f":"B28+E28","v":{"$error":"#DIV/0!"}},{"$f":"IF(ABS(B27-B24)<B25*0.2,B25,ABS(B25-B22))","v":{"$error":"#DIV/0!"}}]
["Kommentarer:"]